fUSD/lending_fUSD_20240519
["ID","MTS","AMOUNT","RATE_DAILY","PERIOD"]
[327450398,1716078676651,-500.0,0.00028767,2]
[327450399,1716078676663,-500.0,0.00028767,2]
[327450400,1716078676672,-716.13,0.00028767,2]
[327450401,1716078676683,-768.84,0.00028767,2]
[327450402,1716078676695,-1840.17,0.00028767,2]
[327450403,1716078676707,-986.7,0.00028767,2]
[327450404,1716078676717,-500.0,0.00028767,2]
[327450405,1716078676727,-1662.73,0.00028767,2]
[327450406,1716078676737,-4303.61,0.00028767,2]
[327450407,1716078676746,-631.36,0.00028767,2]
[327450408,1716078676755,-261.731045,0.00028767,7]
[327450409,1716078676765,-724.28,0.00028767,2]
[327450410,1716078676775,-3000.96,0.00028767,2]
[327450411,1716078676784,-613.97,0.00028767,2]
[327450412,1716078676794,-504.46,0.00028767,2]
[327450413,1716078676803,-525.96,0.00028767,2]
[327450414,1716078676812,-500.0,0.00028767,2]
[327450415,1716078676822,-3050.31,0.00028767,2]
[327450416,1716078676831,-2206.8,0.00028767,2]
[327450417,1716078676840,-3296.43,0.00028767,2]
[327450418,1716078676850,-3601.59,0.00028767,2]
[327450419,1716078676859,-3041.56,0.00028767,2]
[327450420,1716078676869,-151.0,0.00028767,7]
[327450421,1716078676879,-523.16,0.00028767,2]
[327450422,1716078676888,-2275.09,0.00028767,2]
[327450423,1716078676898,-500.0,0.00028767,2]
[327450424,1716078676907,-750.61,0.00028767,2]
[327450425,1716078676917,-3685.01,0.00028767,2]
[327450426,1716078676927,-1919.05,0.00028767,2]
[327450427,1716078676936,-1219.88,0.00028767,2]
[327450428,1716078676946,-1988.81,0.00028767,2]
[327450429,1716078676955,-606.7,0.00028767,2]
[327450430,1716078676965,-500.0,0.00028767,2]
[327450431,1716078676975,-1878.81,0.00028767,2]
[327450432,1716078676984,-2176.0,0.00028767,2]
[327450433,1716078676993,-2585.42,0.00028767,2]
[327450434,1716078677003,-3682.41,0.00028767,2]
[327450435,1716078677013,-500.0,0.00028767,2]
[327450436,1716078677023,-738.69,0.00028767,2]
[327450437,1716078677033,-1679.77,0.00028767,2]
[327450438,1716078677043,-702.165279,0.00028767,7]
[327450439,1716078677053,-702.165279,0.00028767,7]
[327450440,1716078677063,-500.0,0.00028767,2]
[327450441,1716078677072,-500.0,0.00028767,2]
[327450442,1716078677082,-2986.43,0.00028767,2]
[327450443,1716078677092,-4242.79,0.00028767,2]
[327450444,1716078677103,-500.0,0.00028767,2]
[327450445,1716078677112,-232.574185,0.00028767,7]
[327450446,1716078677123,-3057.4,0.00028767,2]
[327450447,1716078677133,-500.0,0.00028767,2]
[327450448,1716078677143,-1055.1,0.00028767,2]
[327450449,1716078677153,-500.0,0.00028767,2]
[327450450,1716078677163,-232.574185,0.00028767,7]
[327450451,1716078677173,-5880.85,0.00028767,2]
[327450452,1716078677183,-1361.72,0.00028767,2]
[327450453,1716078677193,-2275.09,0.00028767,2]
[327450454,1716078677203,-567.25,0.00028767,2]
[327450455,1716078677214,-1546.63,0.00028767,2]
[327450456,1716078677224,-2234.1,0.00028767,2]
[327450457,1716078677234,-2444.03,0.00028767,2]
[327450458,1716078677244,-500.0,0.00028767,2]
[327450459,1716078677254,-629.55,0.00028767,2]
[327450460,1716078677264,-500.0,0.00028767,2]
[327450461,1716078677276,-507.61,0.00028767,2]
[327450462,1716078677290,-500.0,0.00028767,2]
[327450463,1716078677300,-631.01,0.00028767,2]
[327450464,1716078677310,-1214.83,0.00028767,2]
[327450465,1716078677320,-751.01,0.00028767,2]
[327450466,1716078677331,-151.0,0.00028767,7]
[327450467,1716078677341,-1907.53,0.00028767,2]
[327450468,1716078677351,-500.0,0.00028767,2]
[327450469,1716078677365,-2098.31,0.00028767,2]
[327450470,1716078677375,-823.01,0.00028767,2]
[327450471,1716078677385,-1155.69,0.00028767,2]
[327450472,1716078677395,-500.0,0.00028767,2]
[327450473,1716078677405,-598.87,0.00028767,2]
[327450474,1716078677415,-553.76,0.00028767,2]
[327450475,1716078677425,-513.61,0.00028767,2]
[327450476,1716078677434,-2141.74,0.00028767,2]
[327450477,1716078677444,-500.0,0.00028767,2]
[327450478,1716078677455,-916.74,0.00028767,2]
[327450479,1716078677466,-971.82,0.00028767,2]
[327450480,1716078677476,-2760.5,0.00028767,2]
[327450481,1716078677486,-1119.54,0.00028767,2]
[327450482,1716078677495,-500.0,0.00028767,2]
[327450483,1716078677505,-500.0,0.00028767,2]
[327450484,1716078677516,-2356.22,0.00028767,2]
[327450485,1716078677525,-500.0,0.00028767,2]
[327450486,1716078677535,-6798.107725,0.00028767,7]
[327450487,1716078677545,-5000.0,0.00028835,2]
[327450488,1716078677555,-153.68,0.00028899,2]
[327450489,1716078677565,-523.82,0.00028899,2]
[327450490,1716078677576,-199.58,0.00028899,2]
[327450491,1716078677586,-523.82,0.00028899,2]
[327450492,1716078677596,-345.64,0.00028899,2]
[327450493,1716078677607,-5983.79489043,0.00028941,2]
[327450494,1716078677616,-504.2,0.00028943,7]
[327450495,1716078677626,-200.0,0.0002899,15]
[327450496,1716078677636,-206.63236322,0.00029,2]
[327450497,1716078677646,-12650.30629629,0.00029,3]
[327450498,1716078677656,-900.0,0.00029,30]
[327450499,1716078677665,-1382.89167,0.0002902,2]
[327450500,1716078677676,-174.42559274,0.00029021,2]
[327450501,1716078677686,-500.0,0.0002904,2]
[327450502,1716078677695,-500.0,0.0002904,2]
[327450503,1716078677705,-681.95,0.00029041,2]
[327450504,1716078677716,-500.0,0.00029041,2]
[327450505,1716078677726,-500.0,0.00029041,2]
[327450506,1716078677736,-451.76840416,0.00029041,2]
[327450507,1716078677746,-500.0,0.00029041,2]
[327450508,1716078677755,-500.0,0.00029041,2]
[327450509,1716078677765,-500.0,0.00029041,2]
[327450510,1716078677775,-500.0,0.00029041,2]
[327450511,1716078677989,-474.85528646,0.00029041,2]
[327450512,1716078678012,-500.0,0.00029041,2]
[327450513,1716078678022,-500.0,0.00029041,2]
[327450514,1716078678033,-500.0,0.00029041,2]
[327450515,1716078678043,-500.0,0.00029041,2]
[327450516,1716078678052,-510.63633078,0.00029041,2]
[327450517,1716078678063,-500.0,0.00029041,2]
[327450518,1716078678074,-505.93,0.00029041,2]
[327450519,1716078678083,-517.25,0.00029041,2]
[327450520,1716078678093,-500.0,0.00029041,2]
[327450521,1716078678103,-500.0,0.00029041,2]
[327450522,1716078678112,-500.0,0.00029041,2]
[327450523,1716078678122,-186.64760485,0.00029041,2]
[327450524,1716078678132,-500.0,0.00029041,2]
[327450525,1716078678142,-500.0,0.00029041,2]
[327450526,1716078678151,-500.0,0.00029041,2]
[327450527,1716078678161,-500.0,0.00029041,2]
[327450528,1716078678170,-500.0,0.00029041,2]
[327450529,1716078678180,-232.31153279,0.00029041,2]
[327450530,1716078678190,-500.0,0.00029041,2]
[327450531,1716078678199,-500.0,0.00029041,2]
[327450532,1716078678209,-500.0,0.00029041,2]
[327450533,1716078678219,-233.68453775,0.00029041,2]
[327450534,1716078678229,-500.0,0.00029041,2]
[327450535,1716078678238,-733.98,0.00029041,2]
[327450536,1716078678248,-500.0,0.00029041,2]
[327450537,1716078678258,-500.0,0.00029041,2]
[327450538,1716078678268,-500.0,0.00029041,2]
[327450539,1716078678279,-500.0,0.00029041,2]
[327450540,1716078678290,-500.0,0.00029041,2]
[327450541,1716078678300,-500.0,0.00029041,2]
[327450542,1716078678310,-722.95,0.00029041,2]
[327450543,1716078678320,-500.0,0.00029041,2]
[327450544,1716078678330,-1030.53,0.00029041,2]
[327450545,1716078678339,-502.13,0.00029041,2]
[327450546,1716078678348,-500.0,0.00029041,2]
[327450547,1716078678358,-500.0,0.00029041,2]
[327450548,1716078678368,-500.0,0.00029041,2]
[327450549,1716078678377,-500.0,0.00029041,2]
[327450550,1716078678387,-1044.26,0.00029041,2]
[327450551,1716078678396,-583.65,0.00029041,2]
[327450552,1716078678406,-648.82,0.00029041,2]
[327450553,1716078678415,-574.36,0.00029041,2]
[327450554,1716078678425,-537.0,0.00029041,2]
[327450555,1716078678435,-500.0,0.00029041,2]
[327450556,1716078678444,-500.0,0.00029041,2]
[327450557,1716078678454,-500.0,0.00029041,2]
[327450558,1716078678464,-500.0,0.00029041,2]
[327450559,1716078678473,-500.0,0.00029041,2]
[327450560,1716078678483,-500.0,0.00029041,2]
[327450561,1716078678492,-505.89,0.00029041,2]
[327450562,1716078678502,-737.65,0.00029041,2]
[327450563,1716078678511,-500.0,0.00029041,2]
[327450564,1716078678521,-500.0,0.00029041,2]
[327450565,1716078678531,-500.0,0.00029041,2]
[327450566,1716078678540,-500.0,0.00029041,2]
[327450567,1716078678549,-500.0,0.00029041,2]
[327450568,1716078678559,-500.0,0.00029041,2]
[327450569,1716078678568,-500.0,0.00029041,2]
[327450570,1716078678577,-577.98,0.00029041,2]
[327450571,1716078678587,-500.0,0.00029041,2]
[327450572,1716078678596,-500.0,0.00029041,2]
[327450573,1716078678605,-500.0,0.00029041,2]
[327450574,1716078678615,-531.85,0.00029041,2]
[327450575,1716078678624,-500.0,0.00029041,2]
[327450576,1716078678633,-500.0,0.00029041,2]
[327450577,1716078678643,-630.47,0.00029041,2]
[327450578,1716078678653,-921.62,0.00029041,2]
[327450579,1716078678662,-598.64,0.00029041,2]
[327450580,1716078678672,-597.35,0.00029041,2]
[327450581,1716078678681,-500.0,0.00029041,2]
[327450582,1716078678691,-678.99,0.00029041,2]
[327450583,1716078678700,-500.0,0.00029041,2]
[327450584,1716078678710,-500.0,0.00029041,2]
[327450585,1716078678719,-1138.39,0.00029041,2]
[327450586,1716078678728,-596.25,0.00029041,2]
[327450587,1716078678738,-500.0,0.00029041,2]
[327450588,1716078678747,-500.0,0.00029041,2]
[327450589,1716078678756,-500.0,0.00029041,2]
[327450590,1716078678766,-827.83,0.00029041,2]
[327450591,1716078678775,-500.0,0.00029041,2]
[327450592,1716078678785,-1011.91,0.00029041,2]
[327450593,1716078678794,-890.31,0.00029041,2]
[327450594,1716078678803,-500.0,0.00029041,2]
[327450595,1716078678813,-500.0,0.00029041,2]
[327450596,1716078678822,-655.15,0.00029041,2]
[327450597,1716078678831,-500.0,0.00029041,2]
[327450598,1716078678840,-500.0,0.00029041,2]
[327450599,1716078678850,-672.45,0.00029041,2]
[327450600,1716078678860,-500.0,0.00029041,2]
[327450601,1716078678869,-500.0,0.00029041,2]
[327450602,1716078678879,-500.0,0.00029041,2]
[327450603,1716078678888,-500.0,0.00029041,2]
[327450604,1716078678898,-504.05,0.00029041,2]
[327450605,1716078678907,-689.56,0.00029041,2]
[327450606,1716078678916,-500.0,0.00029041,2]
[327450607,1716078678926,-611.06,0.00029041,2]
[327450608,1716078678935,-500.0,0.00029041,2]
[327450609,1716078678945,-500.0,0.00029041,2]
[327450610,1716078678955,-633.75,0.00029041,2]
[327450611,1716078678965,-500.0,0.00029041,2]
[327450612,1716078678975,-900.3,0.00029041,2]
[327450613,1716078678985,-151.0,0.00029041,7]
[327450614,1716078678995,-500.0,0.00029041,2]
[327450615,1716078679005,-500.0,0.00029041,2]
[327450616,1716078679016,-151.717903,0.00029041,7]
[327450617,1716078679026,-523.89,0.00029041,2]
[327450618,1716078679035,-534.55,0.00029041,2]
[327450619,1716078679045,-569.19,0.00029041,2]
[327450620,1716078679055,-500.0,0.00029041,2]
[327450621,1716078679065,-500.0,0.00029041,2]
[327450622,1716078679075,-500.0,0.00029041,2]
[327450623,1716078679085,-500.0,0.00029041,2]
[327450624,1716078679095,-1239.6,0.00029041,2]
[327450625,1716078679104,-500.0,0.00029041,2]
[327450626,1716078679114,-637.24,0.00029041,2]
[327450627,1716078679124,-748.98,0.00029041,2]
[327450628,1716078679134,-500.0,0.00029041,2]
[327450629,1716078679144,-527.94,0.00029041,2]
[327450630,1716078679153,-832.73,0.00029041,2]
[327450631,1716078679163,-500.0,0.00029041,2]
[327450632,1716078679173,-551.34,0.00029041,2]
[327450633,1716078679183,-500.0,0.00029041,2]
[327450634,1716078679192,-500.0,0.00029041,2]
[327450635,1716078679202,-500.0,0.00029041,2]
[327450636,1716078679212,-500.0,0.00029041,2]
[327450637,1716078679221,-500.0,0.00029041,2]
[327450638,1716078679230,-500.0,0.00029041,2]
[327450639,1716078679240,-876.87,0.00029041,2]
[327450640,1716078679250,-500.0,0.00029041,2]
[327450641,1716078679260,-812.13,0.00029041,2]
[327450642,1716078679269,-188.67234622,0.00029041,2]
[327450643,1716078679282,-648.2,0.00029041,2]
[327450644,1716078679292,-500.0,0.00029041,2]
[327450645,1716078679302,-1583.82,0.00029041,2]
[327450646,1716078679311,-500.0,0.00029041,2]
[327450647,1716078679322,-1475.35,0.00029041,2]
[327450648,1716078679331,-895.82,0.00029041,2]
[327450649,1716078679341,-500.0,0.00029041,2]
[327450650,1716078679350,-670.03,0.00029041,2]
[327450651,1716078679362,-882.87,0.00029041,2]
[327450652,1716078679372,-500.0,0.00029041,2]
[327450653,1716078679382,-500.0,0.00029041,2]
[327450654,1716078679391,-500.0,0.00029041,2]
[327450655,1716078679401,-580.61,0.00029041,2]
[327450656,1716078679411,-545.97,0.00029041,2]
[327450657,1716078679421,-500.0,0.00029041,2]
[327450658,1716078679430,-500.0,0.00029041,2]
[327450659,1716078679440,-500.0,0.00029041,2]
[327450660,1716078679450,-500.0,0.00029041,2]
[327450661,1716078679460,-529.56,0.00029041,2]
[327450662,1716078679469,-500.0,0.00029041,2]
[327450663,1716078679479,-2239.3,0.00029041,2]
[327450664,1716078679488,-500.0,0.00029041,2]
[327450665,1716078679497,-619.46,0.00029041,2]
[327450666,1716078679507,-823.42,0.00029041,2]
[327450667,1716078679517,-500.0,0.00029041,2]
[327450668,1716078679526,-166.4694823,0.00029041,2]
[327450669,1716078679536,-500.0,0.00029041,2]
[327450670,1716078679546,-899.65,0.00029041,2]
[327450671,1716078679555,-541.86,0.00029041,2]
[327450672,1716078679565,-716.2,0.00029041,2]
[327450673,1716078679575,-621.68,0.00029041,2]
[327450674,1716078679585,-1398.84,0.00029041,2]
[327450675,1716078679595,-669.33,0.00029041,2]
[327450676,1716078679605,-500.0,0.00029041,2]
[327450677,1716078679614,-557.15,0.00029041,2]
[327450678,1716078679624,-735.95,0.00029041,2]
[327450679,1716078679633,-500.0,0.00029041,2]
[327450680,1716078679643,-669.0,0.00029041,2]
[327450681,1716078679652,-753.99,0.00029041,2]
[327450682,1716078679662,-1923.63,0.00029041,2]
[327450683,1716078679671,-884.1,0.00029041,2]
[327450684,1716078679680,-500.0,0.00029041,2]
[327450685,1716078679689,-500.0,0.00029041,2]
[327450686,1716078679699,-656.37,0.00029041,2]
[327450687,1716078679709,-500.0,0.00029041,2]
[327450688,1716078679720,-928.15,0.00029041,2]
[327450689,1716078679730,-500.0,0.00029041,2]
[327450690,1716078679739,-806.75,0.00029041,2]
[327450691,1716078679749,-500.0,0.00029041,2]
[327450692,1716078679758,-685.35,0.00029041,2]
[327450693,1716078679768,-648.92,0.00029041,2]
[327450694,1716078679778,-500.0,0.00029041,2]
[327450695,1716078679787,-500.0,0.00029041,2]
[327450696,1716078679796,-500.0,0.00029041,2]
[327450697,1716078679805,-813.03,0.00029041,2]
[327450698,1716078679815,-614.14,0.00029041,2]
[327450699,1716078679824,-791.44,0.00029041,2]
[327450700,1716078679833,-500.0,0.00029041,2]
[327450701,1716078679843,-500.0,0.00029041,2]
[327450702,1716078679852,-1036.27,0.00029041,2]
[327450703,1716078679861,-693.8,0.00029041,2]
[327450704,1716078679871,-500.0,0.00029041,2]
[327450705,1716078679880,-1117.96,0.00029041,2]
[327450706,1716078679890,-774.17,0.00029041,2]
[327450707,1716078679899,-500.0,0.00029041,2]
[327450708,1716078679909,-500.0,0.00029041,2]
[327450709,1716078679919,-151.0,0.00029041,7]
[327450710,1716078679928,-151.0,0.00029041,7]
[327450711,1716078679938,-500.0,0.00029041,2]
[327450712,1716078679947,-554.73,0.00029041,2]
[327450713,1716078679957,-762.69,0.00029041,2]
[327450714,1716078679966,-500.0,0.00029041,2]
[327450715,1716078679975,-500.0,0.00029041,2]
[327450716,1716078679985,-151.0,0.00029041,7]
[327450717,1716078679995,-151.0,0.00029041,7]
[327450718,1716078680006,-259.411566,0.00029041,7]
[327450719,1716078680016,-500.0,0.00029041,2]
[327450720,1716078680025,-151.0,0.00029041,7]
[327450721,1716078680035,-150.0,0.00029041,2]
[327450722,1716078680046,-626.67,0.00029041,2]
[327450723,1716078680056,-259.411566,0.00029041,7]
[327450724,1716078680071,-1681.9,0.00029041,2]
[327450725,1716078680081,-1315.61,0.00029041,2]
[327450726,1716078680091,-151.0,0.00029041,7]
[327450727,1716078680100,-518.65,0.00029041,2]
[327450728,1716078680110,-1008.21,0.00029041,2]
[327450729,1716078680120,-578.45,0.00029041,2]
[327450730,1716078680129,-500.0,0.00029041,2]
[327450731,1716078680139,-500.0,0.00029041,2]
[327450732,1716078680148,-665.8,0.00029041,2]
[327450733,1716078680158,-500.0,0.00029041,2]
[327450734,1716078680168,-512.39,0.00029041,2]
[327450735,1716078680177,-1367.82,0.00029041,2]
[327450736,1716078680187,-500.0,0.00029041,2]
[327450737,1716078680196,-151.0,0.00029041,7]
[327450738,1716078680206,-966.33,0.00029041,2]
[327450739,1716078680216,-911.7,0.00029041,2]
[327450740,1716078680224,-957.33,0.00029041,2]
[327450741,1716078680234,-1131.82,0.00029041,2]
[327450742,1716078680243,-500.0,0.00029041,2]
[327450743,1716078680252,-151.0,0.00029041,7]
[327450744,1716078680262,-1166.35,0.00029041,2]
[327450745,1716078680271,-500.0,0.00029041,2]
[327450746,1716078680283,-500.0,0.00029041,2]
[327450747,1716078680293,-408.76962534,0.00029041,2]
[327450748,1716078680359,-862.14,0.00029041,2]
[327450749,1716078680368,-960.69,0.00029041,2]
[327450750,1716078680377,-522.68,0.00029041,2]
[327450751,1716078680386,-654.36,0.00029041,2]
[327450752,1716078680395,-500.0,0.00029041,2]
[327450753,1716078680405,-500.0,0.00029041,2]
[327450754,1716078680414,-500.0,0.00029041,2]
[327450755,1716078680423,-1298.17,0.00029041,2]
[327450756,1716078680433,-852.23,0.00029041,2]
[327450757,1716078680442,-500.0,0.00029041,2]
[327450758,1716078680451,-283.22503,0.00029041,7]
[327450759,1716078680460,-500.0,0.00029041,2]
[327450760,1716078680469,-641.81,0.00029041,2]
[327450761,1716078680478,-1049.32,0.00029041,2]
[327450762,1716078680487,-283.22503,0.00029041,7]
[327450763,1716078680496,-500.0,0.00029041,2]
[327450764,1716078680505,-559.84,0.00029041,2]
[327450765,1716078680514,-920.0,0.00029041,2]
[327450766,1716078680523,-438.0,0.00029041,2]
[327450767,1716078680532,-500.0,0.00029041,2]
[327450768,1716078680542,-500.0,0.00029041,2]
[327450769,1716078680551,-500.0,0.00029041,2]
[327450770,1716078680560,-500.0,0.00029041,2]
[327450771,1716078680569,-1059.88,0.00029041,2]
[327450772,1716078680579,-1239.43,0.00029041,2]
[327450773,1716078680588,-500.0,0.00029041,2]
[327450774,1716078680597,-151.0,0.00029041,7]
[327450775,1716078680607,-930.82,0.00029041,2]
[327450776,1716078680616,-896.18,0.00029041,2]
[327450777,1716078680625,-1090.58,0.00029041,2]
[327450778,1716078680634,-500.0,0.00029041,2]
[327450779,1716078680643,-501.2,0.00029041,2]
[327450780,1716078680652,-756.03,0.00029041,2]
[327450781,1716078680661,-3708.29,0.00029041,2]
[327450782,1716078680671,-568.47,0.00029041,2]
[327450783,1716078680680,-634.45,0.00029041,2]
[327450784,1716078680689,-669.45,0.00029041,2]
[327450785,1716078680698,-640.29,0.00029041,2]
[327450786,1716078680707,-1188.88,0.00029041,2]
[327450787,1716078680717,-236.45168,0.00029041,7]
[327450788,1716078680726,-1706.37,0.00029041,2]
[327450789,1716078680735,-151.0,0.00029041,7]
[327450790,1716078680744,-151.0,0.00029041,7]
[327450791,1716078680754,-501.03,0.00029041,2]
[327450792,1716078680763,-500.0,0.00029041,2]
[327450793,1716078680772,-604.36,0.00029041,2]
[327450794,1716078680782,-18503.15,0.00029041,2]
[327450795,1716078680792,-500.0,0.00029041,2]
[327450796,1716078680800,-3042.71,0.00029041,2]
[327450797,1716078680809,-243.382886,0.00029041,7]
[327450798,1716078680818,-918.3,0.00029041,2]
[327450799,1716078680827,-673.49,0.00029041,2]
[327450800,1716078680836,-500.0,0.00029041,2]
[327450801,1716078680845,-1478.1,0.00029041,2]
[327450802,1716078680854,-151.0,0.00029041,7]
[327450803,1716078680863,-243.382886,0.00029041,7]
[327450804,1716078680871,-563.24,0.00029041,2]
[327450805,1716078680881,-1236.25,0.00029041,2]
[327450806,1716078680890,-6353.16,0.00029041,2]
[327450807,1716078680899,-500.0,0.00029041,2]
[327450808,1716078680908,-858.51,0.00029041,2]
[327450809,1716078680917,-500.0,0.00029041,2]
[327450810,1716078680926,-1637.74,0.00029041,2]
[327450811,1716078680935,-151.0,0.00029041,7]
[327450812,1716078680944,-2093.82,0.00029041,2]
[327450813,1716078680953,-1213.21,0.00029041,2]
[327450814,1716078680963,-1033.3,0.00029041,2]
[327450815,1716078680972,-837.96,0.00029041,2]
[327450816,1716078680982,-649.63,0.00029041,2]
[327450817,1716078680991,-6393.72,0.00029041,2]
[327450818,1716078681001,-1059.23,0.00029041,2]
[327450819,1716078681010,-1055.23,0.00029041,2]
[327450820,1716078681019,-1196.2,0.00029041,2]
[327450821,1716078681029,-13606.2,0.00029041,2]
[327450822,1716078681039,-892.42,0.00029041,2]
[327450823,1716078681048,-9049.33,0.00029041,2]
[327450824,1716078681057,-500.0,0.00029041,2]
[327450825,1716078681066,-1312.43,0.00029041,2]
[327450826,1716078681075,-686.8,0.00029041,2]
[327450827,1716078681084,-929.49,0.00029041,2]
[327450828,1716078681093,-500.0,0.00029041,2]
[327450829,1716078681102,-1939.3,0.00029041,2]
[327450830,1716078681112,-743.66,0.00029041,2]
[327450831,1716078681122,-500.0,0.00029041,2]
[327450832,1716078681131,-2013.02,0.00029041,2]
[327450833,1716078681140,-1030.41,0.00029041,2]
[327450834,1716078681150,-500.0,0.00029041,2]
[327450835,1716078681159,-1781.24,0.00029041,2]
[327450836,1716078681167,-500.0,0.00029041,2]
[327450837,1716078681177,-784.58,0.00029041,2]
[327450838,1716078681186,-1095.5,0.00029041,2]
[327450839,1716078681195,-500.0,0.00029041,2]
[327450840,1716078681203,-675.78,0.00029041,2]
[327450841,1716078681214,-151.0,0.00029041,7]
[327450842,1716078681222,-5578.21,0.00029041,2]
[327450843,1716078681232,-492.090068,0.00029041,7]
[327450844,1716078681241,-853.49,0.00029041,2]
[327450845,1716078681250,-1353.59,0.00029041,2]
[327450846,1716078681259,-4213.64,0.00029041,2]
[327450847,1716078681268,-492.090068,0.00029041,7]
[327450848,1716078681277,-151.0,0.00029041,7]
[327450849,1716078681290,-151.0,0.00029041,7]
[327450850,1716078681299,-613.16,0.00029041,2]
[327450851,1716078681308,-1183.02,0.00029041,2]
[327450852,1716078681319,-8319.89,0.00029041,2]
[327450853,1716078681328,-1523.68,0.00029041,2]
[327450854,1716078681337,-11263.28,0.00029041,2]
[327450855,1716078681346,-500.0,0.00029041,2]
[327450856,1716078681355,-687.5,0.00029041,2]
[327450857,1716078681365,-988.22,0.00029041,2]
[327450858,1716078681374,-500.0,0.00029041,2]
[327450859,1716078681383,-2530.3,0.00029041,2]
[327450860,1716078681392,-878.41,0.00029041,2]
[327450861,1716078681401,-11394.4,0.00029041,2]
[327450862,1716078681410,-1672.62,0.00029041,2]
[327450863,1716078681419,-500.0,0.00029041,2]
[327450864,1716078681428,-1326.615315,0.00029041,7]
[327450865,1716078681437,-803.29,0.00029041,2]
[327450866,1716078681446,-151.0,0.00029041,7]
[327450867,1716078681455,-1326.615315,0.00029041,7]
[327450868,1716078681465,-7614.15,0.00029041,2]
[327450869,1716078681473,-1311.7,0.00029041,2]
[327450870,1716078681482,-1307.43,0.00029041,2]
[327450871,1716078681491,-500.0,0.00029041,2]
[327450872,1716078681500,-1045.39,0.00029041,2]
[327450873,1716078681508,-3075.12,0.00029041,2]
[327450874,1716078681517,-652.54,0.00029041,2]
[327450875,1716078681526,-151.0,0.00029041,7]
[327450876,1716078681535,-863.6,0.00029041,2]
[327450877,1716078681544,-403.3,0.00029041,2]
[327450878,1716078681553,-500.0,0.00029041,2]
[327450879,1716078681562,-255.372338,0.00029041,7]
[327450880,1716078681571,-151.0,0.00029041,7]
[327450881,1716078681580,-500.0,0.00029041,2]
[327450882,1716078681590,-1831.66,0.00029041,2]
[327450883,1716078681598,-1329.27,0.00029041,2]
[327450884,1716078681608,-675.65,0.00029041,2]
[327450885,1716078681617,-12287.87,0.00029041,2]
[327450886,1716078681626,-1113.15,0.00029041,2]
[327450887,1716078681634,-500.0,0.00029041,2]
[327450888,1716078681643,-2444.57,0.00029041,2]
[327450889,1716078681653,-2423.7,0.00029041,2]
[327450890,1716078681661,-151.0,0.00029041,7]
[327450891,1716078681670,-690.97,0.00029041,2]
[327450892,1716078681679,-782.51,0.00029041,2]
[327450893,1716078681688,-500.0,0.00029041,2]
[327450894,1716078681697,-151.0,0.00029041,7]
[327450895,1716078681708,-151.0,0.00029041,7]
[327450896,1716078681718,-2076.59,0.00029041,2]
[327450897,1716078681727,-14693.09,0.00029041,2]